[Event "The Kvibergspelen 2023"]
[Site "Kviberg Park Hotel & Conference, Krutvagen 2, Gothenburg, Sweden"]
[Date "2023.09.16"]
[Round "6.3"]
[White "Sivuk, Vitaly"]
[Black "Kistrup, Nicolai"]
[Result "1/2-1/2"]
[TimeControl "15 minutes + 5 seconds per move from move one (Round 1 - 4) / 90 minutes + 30 seconds per move from move one (Round 5 - 8)"]
[WhiteTitle "GM"]
[BlackTitle "FM"]
[WhiteFideId "14116502"]
[BlackFideId "1444816"]
[WhiteElo "2461"]
[BlackElo "2359"]

1. d4 {[%clk 01:26:43]} {[%emt 00:04:15]} Nf6 {[%clk 01:30:55]} {[%emt
00:00:07]} 2. c4 {[%clk 01:27:05]} {[%emt 00:00:07]} e6 {[%clk 01:31:15]}
{[%emt 00:00:12]} 3. Nf3 {[%clk 01:27:22]} {[%emt 00:00:11]} d5 {[%clk
01:31:32]} {[%emt 00:00:13]} 4. g3 {[%clk 01:27:42]} {[%emt 00:00:10]} dxc4
{[%clk 01:30:23]} {[%emt 00:01:41]} 5. Bg2 {[%clk 01:28:05]} {[%emt 00:00:05]}
c5 {[%clk 01:30:15]} {[%emt 00:00:39]} 6. O-O {[%clk 01:28:23]} {[%emt
00:00:12]} Nc6 {[%clk 01:30:39]} {[%emt 00:00:05]} 7. Qa4 {[%clk 01:28:37]}
{[%emt 00:00:16]} Bd7 {[%clk 01:30:17]} {[%emt 00:00:53]} 8. Qxc4 {[%clk
01:28:47]} {[%emt 00:00:19]} b5 {[%clk 01:30:08]} {[%emt 00:00:40]} 9. Qd3
{[%clk 01:29:05]} {[%emt 00:00:11]} c4 {[%clk 01:30:07]} {[%emt 00:00:32]} 10.
Qc2 {[%clk 01:29:17]} {[%emt 00:00:17]} Be7 {[%clk 01:28:51]} {[%emt 00:01:46]}
11. e4 {[%clk 01:29:27]} {[%emt 00:00:19]} O-O {[%clk 01:28:25]} {[%emt
00:00:58]} 12. Qe2 {[%clk 01:29:48]} {[%emt 00:00:08]} Na5 {[%clk 01:28:21]}
{[%emt 00:00:35]} 13. Rd1 {[%clk 01:29:16]} {[%emt 00:01:01]} b4 {[%clk
01:20:28]} {[%emt 00:08:25]} 14. Ne5 {[%clk 01:14:04]} {[%emt 00:15:40]} Bb5
{[%clk 01:17:50]} {[%emt 00:03:09]} 15. Be3 {[%clk 01:11:09]} {[%emt 00:03:25]}
Rc8 {[%clk 01:01:34]} {[%emt 00:16:46]} 16. a4 {[%clk 01:06:08]} {[%emt
00:05:30]} Ba6 {[%clk 00:56:27]} {[%emt 00:05:37]} 17. Nd2 {[%clk 01:02:00]}
{[%emt 00:04:37]} Bb7 {[%clk 00:43:58]} {[%emt 00:13:01]} 18. Nexc4 {[%clk
01:00:27]} {[%emt 00:02:02]} Nxc4 {[%clk 00:42:13]} {[%emt 00:02:16]} 19. Nxc4
{[%clk 01:00:50]} {[%emt 00:00:06]} Bxe4 {[%clk 00:40:49]} {[%emt 00:01:54]} 20.
Bxe4 {[%clk 01:01:09]} {[%emt 00:00:12]} Nxe4 {[%clk 00:41:15]} {[%emt
00:00:04]} 21. Ne5 {[%clk 01:01:15]} {[%emt 00:00:23]} Qd5 {[%clk 00:31:51]}
{[%emt 00:09:55]} 22. Rac1 {[%clk 00:57:59]} {[%emt 00:03:45]} Bf6 {[%clk
00:21:37]} {[%emt 00:10:45]} 23. Qb5 {[%clk 00:38:10]} {[%emt 00:20:19]} Qxb5
{[%clk 00:15:47]} {[%emt 00:06:20]} 24. axb5 {[%clk 00:38:17]} {[%emt
00:00:22]} Nd6 {[%clk 00:15:36]} {[%emt 00:00:41]} 25. Nd7 {[%clk 00:32:36]}
{[%emt 00:06:11]} Rfd8 {[%clk 00:13:50]} {[%emt 00:02:17]} 26. Rxc8 {[%clk
00:32:51]} {[%emt 00:00:14]} Rxc8 {[%clk 00:13:25]} {[%emt 00:00:55]} 27. Ra1
{[%clk 00:32:46]} {[%emt 00:00:35]} Nxb5 {[%clk 00:11:40]} {[%emt 00:02:16]} 28.
Ra5 {[%clk 00:33:05]} {[%emt 00:00:10]} Nd6 {[%clk 00:09:44]} {[%emt 00:02:27]}
29. Rxa7 {[%clk 00:33:10]} {[%emt 00:00:24]} Nc4 {[%clk 00:08:51]} {[%emt
00:01:24]} 30. Rb7 {[%clk 00:22:25]} {[%emt 00:11:15]} Nxb2 {[%clk 00:06:50]}
{[%emt 00:02:30]} 31. Rxb4 {[%clk 00:22:37]} {[%emt 00:00:18]} Nc4 {[%clk
00:05:42]} {[%emt 00:01:39]} 32. Nxf6+ {[%clk 00:22:53]} {[%emt 00:00:13]} gxf6
{[%clk 00:06:08]} {[%emt 00:00:04]} 33. Bh6 {[%clk 00:23:14]} {[%emt 00:00:09]}
Nd6 {[%clk 00:05:15]} {[%emt 00:01:23]} 34. d5 {[%clk 00:18:38]} {[%emt
00:05:06]} Nf5 {[%clk 00:03:55]} {[%emt 00:01:51]} 35. Bd2 {[%clk 00:18:08]}
{[%emt 00:01:00]} exd5 {[%clk 00:03:02]} {[%emt 00:01:22]} 36. Rg4+ {[%clk
00:17:43]} {[%emt 00:00:55]} Kh8 {[%clk 00:03:07]} {[%emt 00:00:26]} 37. Rf4
{[%clk 00:17:30]} {[%emt 00:00:42]} Nd6 {[%clk 00:02:02]} {[%emt 00:01:36]} 38.
Be3 {[%clk 00:14:10]} {[%emt 00:03:50]} Ne4 {[%clk 00:00:44]} {[%emt 00:01:48]}
39. f3 {[%clk 00:13:04]} {[%emt 00:01:35]} Rc3 {[%clk 00:00:41]} {[%emt
00:00:34]} 40. Bb6 {[%clk 00:09:01]} {[%emt 00:04:32]} Rc1+ {[%clk 00:00:35]}
{[%emt 00:00:37]} 41. Kg2 {[%clk 00:09:27]} {[%emt 00:00:04]} Rc2+ {[%clk
00:00:59]} {[%emt 00:00:06]} 42. Kh3 {[%clk 00:09:25]} {[%emt 00:00:32]} Ng5+
{[%clk 00:00:41]} {[%emt 00:00:48]} 43. Kg4 {[%clk 00:09:50]} {[%emt 00:00:05]}
h5+ {[%clk 00:00:32]} {[%emt 00:00:40]} 44. Kf5 {[%clk 00:09:09]} {[%emt
00:01:09]} Kg7 {[%clk 00:00:46]} {[%emt 00:00:16]} 45. Bd4 {[%clk 00:09:07]}
{[%emt 00:00:32]} Nh7 {[%clk 00:00:33]} {[%emt 00:00:44]} 46. h4 {[%clk
00:07:41]} {[%emt 00:01:55]} Rg2 {[%clk 00:00:44]} {[%emt 00:00:20]} 47. g4
{[%clk 00:07:52]} {[%emt 00:00:18]} hxg4 {[%clk 00:01:00]} {[%emt 00:00:14]} 48.
fxg4 {[%clk 00:08:14]} {[%emt 00:00:08]} Kf8 {[%clk 00:00:31]} {[%emt
00:01:00]} 49. Bxf6 {[%clk 00:07:15]} {[%emt 00:01:28]} Nxf6 {[%clk 00:00:54]}
{[%emt 00:00:08]} 50. Kxf6 {[%clk 00:07:41]} {[%emt 00:00:03]} Re2 {[%clk
00:01:06]} {[%emt 00:00:18]} 51. Rd4 {[%clk 00:06:42]} {[%emt 00:01:29]} Re6+
{[%clk 00:01:08]} {[%emt 00:00:28]} 52. Kf5 {[%clk 00:06:57]} {[%emt 00:00:16]}
Rd6 {[%clk 00:00:55]} {[%emt 00:00:42]} 53. Ke5 {[%clk 00:07:08]} {[%emt
00:00:19]} Rh6 {[%clk 00:00:44]} {[%emt 00:00:41]} 54. h5 {[%clk 00:07:10]}
{[%emt 00:00:27]} Re6+ {[%clk 00:00:34]} {[%emt 00:00:41]} 55. Kxd5 {[%clk
00:07:19]} {[%emt 00:00:21]} Re1 {[%clk 00:00:36]} {[%emt 00:00:28]} 56. Re4
{[%clk 00:07:41]} {[%emt 00:00:08]} Rf1 {[%clk 00:00:49]} {[%emt 00:00:18]} 57.
Ke5 {[%clk 00:08:04]} {[%emt 00:00:07]} Kg7 {[%clk 00:00:48]} {[%emt 00:00:31]}
58. Rf4 {[%clk 00:08:03]} {[%emt 00:00:30]} f6+ {[%clk 00:00:39]} {[%emt
00:00:39]} 59. Kf5 {[%clk 00:08:23]} {[%emt 00:00:10]} Ra1 {[%clk 00:00:56]}
{[%emt 00:00:14]} 60. Rf3 {[%emt 00:01:04]} Ra5+ {[%clk 00:00:55]} 61. Kf4
{[%clk 00:08:44]} {[%emt 00:00:06]} Ra4+ {[%clk 00:01:06]} {[%emt 00:00:19]} 62.
Kg3 {[%clk 00:09:08]} {[%emt 00:00:05]} Ra1 {[%clk 00:01:21]} {[%emt 00:00:16]}
63. Rd3 {[%clk 00:08:54]} {[%emt 00:00:44]} Rg1+ {[%clk 00:01:30]} {[%emt
00:00:20]} 64. Kf3 {[%clk 00:09:10]} {[%emt 00:00:13]} Rf1+ {[%clk 00:01:36]}
{[%emt 00:00:25]} 65. Kg2 {[%clk 00:09:35]} {[%emt 00:00:05]} Ra1 {[%clk
00:01:51]} {[%emt 00:00:16]} 66. Rd7+ {[%clk 00:09:38]} {[%emt 00:00:26]} Kh6
{[%clk 00:00:45]} {[%emt 00:01:38]} 67. Rf7 {[%clk 00:09:52]} {[%emt 00:00:14]}
Kg5 {[%clk 00:00:46]} {[%emt 00:00:30]} 68. Rg7+ {[%clk 00:10:10]} {[%emt
00:00:11]} Kf4 {[%clk 00:01:02]} {[%emt 00:00:15]} 69. h6 {[%clk 00:10:26]}
{[%emt 00:00:14]} Ra2+ {[%clk 00:00:57]} {[%emt 00:00:35]} 70. Kh3 {[%clk
00:08:29]} {[%emt 00:02:25]} Ra1 {[%clk 00:01:14]} {[%emt 00:00:15]} 71. Rg6
{[%clk 00:08:22]} {[%emt 00:00:36]} Rh1+ {[%clk 00:01:28]} {[%emt 00:00:16]} 72.
Kg2 {[%clk 00:08:48]} {[%emt 00:00:04]} Rh4 {[%clk 00:01:34]} {[%emt 00:00:25]}
73. Kf2 {[%clk 00:08:42]} {[%emt 00:00:36]} Rh2+ {[%clk 00:01:32]} {[%emt
00:00:32]} 74. Kg1 {[%clk 00:08:55]} {[%emt 00:00:16]} Rh3 {[%clk 00:01:27]}
{[%emt 00:00:35]} 75. Kf1 {[%clk 00:08:52]} {[%emt 00:00:33]} Rh2 {[%clk
00:01:39]} {[%emt 00:00:19]} 76. Ke1 {[%clk 00:09:12]} {[%emt 00:00:10]} Ke3
{[%clk 00:00:49]} {[%emt 00:01:19]} 77. Kf1 {[%clk 00:07:46]} {[%emt 00:01:56]}
Kf4 {[%clk 00:01:13]} {[%emt 00:00:06]} 1/2-1/2

[Event "The Kvibergspelen 2023"]
[Site "Kviberg Park Hotel & Conference, Krutvagen 2, Gothenburg, Sweden"]
[Date "2023.09.16"]
[Round "6.4"]
[White "Larkin, Vladyslav"]
[Black "Cederstam, Carl"]
[Result "1-0"]
[TimeControl "15 minutes + 5 seconds per move from move one (Round 1 - 4) / 90 minutes + 30 seconds per move from move one (Round 5 - 8)"]
[WhiteTitle "IM"]
[BlackTitle "FM"]
[WhiteFideId "14152894"]
[BlackFideId "1713329"]
[WhiteElo "2464"]
[BlackElo "2232"]

1. d4 {[%clk 01:22:17]} {[%emt 00:08:43]} d5 {[%clk 01:29:58]} {[%emt
00:01:02]} 2. Bf4 {[%clk 01:22:22]} {[%emt 00:00:25]} c5 {[%clk 01:29:33]}
{[%emt 00:00:55]} 3. e3 {[%clk 01:22:45]} {[%emt 00:00:06]} Nf6 {[%clk
01:29:49]} {[%emt 00:00:14]} 4. c3 {[%clk 01:23:09]} {[%emt 00:00:07]} e6
{[%clk 01:29:35]} {[%emt 00:00:44]} 5. Nd2 {[%clk 01:23:29]} {[%emt 00:00:10]}
Bd6 {[%clk 01:28:42]} {[%emt 00:01:23]} 6. Bg3 {[%clk 01:23:53]} {[%emt
00:00:06]} Qc7 {[%clk 01:27:40]} {[%emt 00:01:32]} 7. Bd3 {[%clk 01:21:09]}
{[%emt 00:03:14]} Nbd7 {[%clk 01:27:12]} {[%emt 00:00:58]} 8. Bxd6 {[%clk
01:19:24]} {[%emt 00:02:15]} Qxd6 {[%clk 01:27:35]} {[%emt 00:00:07]} 9. f4
{[%clk 01:19:52]} {[%emt 00:00:02]} h6 {[%clk 01:17:59]} {[%emt 00:10:06]} 10.
Ngf3 {[%clk 01:18:21]} {[%emt 00:02:02]} g5 {[%clk 01:16:55]} {[%emt 00:01:32]}
11. O-O {[%clk 01:17:29]} {[%emt 00:01:23]} gxf4 {[%clk 01:12:35]} {[%emt
00:04:51]} 12. exf4 {[%clk 01:17:54]} {[%emt 00:00:04]} Qxf4 {[%clk 01:06:35]}
{[%emt 00:06:30]} 13. Qe2 {[%clk 01:18:15]} {[%emt 00:00:09]} Ng4 {[%clk
00:58:37]} {[%emt 00:08:28]} 14. Rae1 {[%clk 01:17:52]} {[%emt 00:00:54]} cxd4
{[%clk 00:55:40]} {[%emt 00:03:26]} 15. cxd4 {[%clk 01:18:13]} {[%emt
00:00:09]} h5 {[%clk 00:46:14]} {[%emt 00:09:56]} 16. Nb3 {[%clk 01:09:25]}
{[%emt 00:09:18]} Ndf6 {[%clk 00:34:50]} {[%emt 00:11:54]} 17. g3 {[%clk
01:06:51]} {[%emt 00:03:04]} Qc7 {[%clk 00:31:48]} {[%emt 00:03:31]} 18. Rc1
{[%clk 00:56:20]} {[%emt 00:11:02]} Qd6 {[%clk 00:31:07]} {[%emt 00:01:10]} 19.
Nh4 {[%clk 00:55:47]} {[%emt 00:01:04]} Bd7 {[%clk 00:17:55]} {[%emt 00:13:41]}
20. Nc5 {[%clk 00:53:26]} {[%emt 00:02:52]} Ne4 {[%clk 00:09:41]} {[%emt
00:08:43]} 21. Bxe4 {[%clk 00:35:52]} {[%emt 00:18:05]} dxe4 {[%clk 00:10:01]}
{[%emt 00:00:10]} 22. Qxe4 {[%clk 00:36:19]} {[%emt 00:00:03]} Bc6 {[%clk
00:06:01]} {[%emt 00:04:30]} 23. Nf5 {[%clk 00:36:45]} {[%emt 00:00:05]} Qxc5
{[%clk 00:05:04]} {[%emt 00:01:27]} 24. dxc5 {[%clk 00:33:04]} {[%emt
00:04:11]} Bxe4 {[%clk 00:05:27]} {[%emt 00:00:06]} 25. Nd6+ {[%clk 00:33:33]}
{[%emt 00:00:01]} Kf8 {[%clk 00:04:04]} {[%emt 00:01:53]} 26. Nxe4 {[%clk
00:33:58]} {[%emt 00:00:05]} f5 {[%clk 00:00:59]} {[%emt 00:03:35]} 27. Ng5
{[%clk 00:33:30]} {[%emt 00:00:58]} Rh6 {[%clk 00:00:59]} {[%emt 00:00:29]} 28.
Rce1 {[%clk 00:33:54]} {[%emt 00:00:06]} Re8 {[%clk 00:01:09]} {[%emt
00:00:21]} 29. h3 {[%clk 00:34:00]} {[%emt 00:00:24]} Rg6 {[%clk 00:01:26]}
{[%emt 00:00:14]} 30. Nxe6+ {[%clk 00:34:20]} {[%emt 00:00:09]} Rgxe6 {[%clk
00:00:41]} {[%emt 00:01:15]} 31. Rxe6 {[%clk 00:34:46]} {[%emt 00:00:05]} Rxe6
{[%clk 00:00:58]} {[%emt 00:00:13]} 32. hxg4 {[%clk 00:35:13]} {[%emt
00:00:02]} hxg4 {[%clk 00:01:00]} {[%emt 00:00:28]} 33. Rxf5+ {[%clk 00:35:40]}
{[%emt 00:00:03]} Ke8 {[%clk 00:01:24]} {[%emt 00:00:06]} 34. Kf2 {[%clk
00:35:22]} {[%emt 00:00:47]} Kd7 {[%clk 00:01:35]} {[%emt 00:00:19]} 35. b4
{[%clk 00:34:58]} {[%emt 00:00:55]} Kc6 {[%clk 00:01:30]} {[%emt 00:00:35]} 36.
a4 {[%clk 00:34:27]} {[%emt 00:01:01]} a6 {[%clk 00:01:53]} {[%emt 00:00:07]}
37. a5 {[%clk 00:31:30]} {[%emt 00:03:27]} Kb5 {[%clk 00:00:45]} {[%emt
00:01:38]} 38. Rf4 {[%clk 00:31:56]} {[%emt 00:00:04]} Rg6 {[%clk 00:00:38]}
{[%emt 00:00:36]} 39. Ke2 {[%clk 00:32:18]} {[%emt 00:00:09]} Ka4 {[%clk
00:00:34]} {[%emt 00:00:34]} 40. Kd3 {[%clk 00:32:34]} {[%emt 00:00:13]} Kb3
{[%clk 00:00:41]} {[%emt 00:00:23]} 41. Rd4 {[%clk 00:31:30]} {[%emt 00:01:34]}
Rg7 {[%clk 00:00:40]} {[%emt 00:00:31]} 42. Re4 {[%clk 00:29:02]} {[%emt
00:02:59]} Rg6 {[%clk 00:00:33]} {[%emt 00:00:37]} 43. Ke3 {[%clk 00:28:59]}
{[%emt 00:00:33]} Kc3 {[%clk 00:00:34]} {[%emt 00:00:28]} 44. Kf4 {[%clk
00:29:26]} {[%emt 00:00:04]} Rg7 {[%clk 00:00:33]} {[%emt 00:00:31]} 45. Kf5
{[%clk 00:29:43]} {[%emt 00:00:12]} Rf7+ {[%clk 00:00:31]} {[%emt 00:00:33]} 46.
Kxg4 {[%clk 00:30:05]} {[%emt 00:00:07]} Rg7+ {[%clk 00:00:38]} {[%emt
00:00:24]} 47. Kf3 {[%clk 00:30:18]} {[%emt 00:00:17]} Kd3 {[%clk 00:00:54]}
{[%emt 00:00:14]} 48. Re6 {[%clk 00:29:19]} {[%emt 00:01:29]} Rf7 {[%clk
00:01:08]} {[%emt 00:00:16]} 49. Kg4 {[%clk 00:28:51]} {[%emt 00:00:57]} Kc4
{[%clk 00:00:39]} {[%emt 00:01:00]} 50. Rb6 {[%clk 00:29:17]} {[%emt 00:00:04]}
Kd5 {[%clk 00:00:36]} {[%emt 00:00:33]} 51. Kg5 {[%clk 00:29:12]} {[%emt
00:00:34]} Rg7 {[%clk 00:00:53]} {[%emt 00:00:14]} 52. Rg6 {[%clk 00:29:33]}
{[%emt 00:00:09]} Re7 {[%clk 00:00:34]} {[%emt 00:00:49]} 53. g4 {[%clk
00:29:54]} {[%emt 00:00:09]} Ke5 {[%clk 00:00:49]} {[%emt 00:00:15]} 54. Kh6
{[%clk 00:29:59]} {[%emt 00:00:25]} Re8 {[%clk 00:00:34]} {[%emt 00:00:44]} 55.
Rb6 {[%clk 00:30:08]} {[%emt 00:00:22]} Re7 {[%clk 00:00:39]} {[%emt 00:00:25]}
56. g5 {[%clk 00:30:29]} {[%emt 00:00:09]} Kf5 {[%clk 00:00:46]} {[%emt
00:00:23]} 57. g6 {[%clk 00:30:41]} {[%emt 00:00:18]} Re4 {[%clk 00:00:34]}
{[%emt 00:00:41]} 58. Kg7 {[%clk 00:30:49]} {[%emt 00:00:22]} Re7+ {[%clk
00:00:35]} {[%emt 00:00:30]} 59. Kf8 {[%clk 00:31:15]} {[%emt 00:00:04]} Rc7
{[%clk 00:01:00]} {[%emt 00:00:05]} 60. Kg8 {[%clk 00:31:11]} {[%emt 00:00:33]}
Kg5 {[%clk 00:00:32]} {[%emt 00:00:58]} 61. g7 {[%clk 00:31:36]} {[%emt
00:00:05]} Kh5 {[%clk 00:00:33]} {[%emt 00:00:30]} 62. Kh8 {[%clk 00:31:53]}
{[%emt 00:00:13]} 1-0

[Event "The Kvibergspelen 2023"]
[Site "Kviberg Park Hotel & Conference, Krutvagen 2, Gothenburg, Sweden"]
[Date "2023.09.16"]
[Round "6.5"]
[White "Akesson, Ralf"]
[Black "Pedersen, Daniel Vesterbaek"]
[Result "1/2-1/2"]
[TimeControl "15 minutes + 5 seconds per move from move one (Round 1 - 4) / 90 minutes + 30 seconds per move from move one (Round 5 - 8)"]
[WhiteTitle "GM"]
[BlackTitle "FM"]
[WhiteFideId "1700120"]
[BlackFideId "1402161"]
[WhiteElo "2410"]
[BlackElo "2163"]

1. Nf3 {[%clk 01:27:25]} {[%emt 00:03:35]} c5 {[%clk 01:30:50]} {[%emt
00:00:11]} 2. c4 {[%clk 01:27:21]} {[%emt 00:00:34]} Nf6 {[%clk 01:31:13]}
{[%emt 00:00:07]} 3. Nc3 {[%clk 01:27:44]} {[%emt 00:00:07]} Nc6 {[%clk
01:31:28]} {[%emt 00:00:15]} 4. d4 {[%clk 01:28:01]} {[%emt 00:00:13]} cxd4
{[%clk 01:31:46]} {[%emt 00:00:13]} 5. Nxd4 {[%clk 01:28:24]} {[%emt 00:00:06]}
e6 {[%clk 01:32:02]} {[%emt 00:00:15]} 6. a3 {[%clk 01:28:44]} {[%emt
00:00:10]} Bc5 {[%clk 01:32:06]} {[%emt 00:00:26]} 7. Nb3 {[%clk 01:28:53]}
{[%emt 00:00:20]} Bb6 {[%clk 01:32:17]} {[%emt 00:00:19]} 8. e4 {[%clk
01:19:23]} {[%emt 00:10:00]} d6 {[%clk 01:05:41]} {[%emt 00:27:06]} 9. Bg5
{[%clk 01:17:56]} {[%emt 00:01:59]} h6 {[%clk 01:04:08]} {[%emt 00:01:59]} 10.
Bh4 {[%clk 01:18:06]} {[%emt 00:00:21]} O-O {[%clk 00:54:06]} {[%emt 00:10:32]}
11. Be2 {[%clk 01:17:22]} {[%emt 00:01:15]} a6 {[%clk 00:40:20]} {[%emt
00:14:15]} 12. O-O {[%clk 01:16:35]} {[%emt 00:01:17]} g5 {[%clk 00:34:55]}
{[%emt 00:05:55]} 13. Bg3 {[%clk 01:16:48]} {[%emt 00:00:18]} e5 {[%clk
00:35:22]} {[%emt 00:00:03]} 14. Rc1 {[%clk 01:10:03]} {[%emt 00:07:15]} Nd4
{[%clk 00:28:11]} {[%emt 00:07:41]} 15. Nxd4 {[%clk 01:05:22]} {[%emt
00:05:10]} Bxd4 {[%clk 00:28:40]} {[%emt 00:00:04]} 16. Qd3 {[%clk 01:05:11]}
{[%emt 00:00:39]} Be6 {[%clk 00:27:11]} {[%emt 00:01:59]} 17. Rc2 {[%clk
00:59:51]} {[%emt 00:05:50]} Rc8 {[%clk 00:25:58]} {[%emt 00:01:43]} 18. Nd5
{[%clk 00:53:15]} {[%emt 00:07:07]} Nxd5 {[%clk 00:25:45]} {[%emt 00:00:42]} 19.
exd5 {[%clk 00:50:55]} {[%emt 00:02:50]} Bd7 {[%clk 00:26:09]} {[%emt
00:00:06]} 20. b4 {[%clk 00:48:29]} {[%emt 00:02:56]} f5 {[%clk 00:25:24]}
{[%emt 00:01:15]} 21. Kh1 {[%clk 00:42:27]} {[%emt 00:06:32]} Qf6 {[%clk
00:24:57]} {[%emt 00:00:57]} 22. f3 {[%clk 00:39:30]} {[%emt 00:03:27]} f4
{[%clk 00:24:51]} {[%emt 00:00:36]} 23. Be1 {[%clk 00:39:05]} {[%emt 00:00:55]}
Bf5 {[%clk 00:25:01]} {[%emt 00:00:20]} 24. Qb3 {[%clk 00:39:29]} {[%emt
00:00:06]} Bxc2 {[%clk 00:24:26]} {[%emt 00:01:06]} 25. Qxc2 {[%clk 00:39:56]}
{[%emt 00:00:02]} b5 {[%clk 00:24:45]} {[%emt 00:00:11]} 26. Qb3 {[%clk
00:40:05]} {[%emt 00:00:20]} Rb8 {[%clk 00:10:28]} {[%emt 00:14:48]} 27. a4
{[%clk 00:37:22]} {[%emt 00:03:13]} bxc4 {[%clk 00:08:07]} {[%emt 00:02:51]} 28.
Bxc4 {[%clk 00:34:58]} {[%emt 00:02:52]} a5 {[%clk 00:08:33]} {[%emt 00:00:05]}
29. b5 {[%clk 00:33:37]} {[%emt 00:01:51]} Bb6 {[%clk 00:09:02]} {[%emt
00:00:02]} 30. Bd3 {[%clk 00:33:47]} {[%emt 00:00:20]} h5 {[%clk 00:08:59]}
{[%emt 00:00:32]} 31. Qd1 {[%clk 00:32:11]} {[%emt 00:02:06]} Rf7 {[%clk
00:08:51]} {[%emt 00:00:38]} 32. Bf2 {[%clk 00:28:35]} {[%emt 00:04:06]} Bxf2
{[%clk 00:08:44]} {[%emt 00:00:38]} 33. Rxf2 {[%clk 00:29:02]} {[%emt
00:00:03]} Rc7 {[%clk 00:07:12]} {[%emt 00:02:01]} 34. Rf1 {[%clk 00:27:17]}
{[%emt 00:02:16]} Rc5 {[%clk 00:03:35]} {[%emt 00:04:07]} 35. Qd2 {[%clk
00:25:25]} {[%emt 00:02:21]} Qd8 {[%clk 00:02:22]} {[%emt 00:01:43]} 36. Qe1
{[%clk 00:24:55]} {[%emt 00:01:00]} Rb7 {[%clk 00:02:12]} {[%emt 00:00:41]} 37.
Bg6 {[%clk 00:22:57]} {[%emt 00:02:27]} Rc4 {[%clk 00:01:02]} {[%emt 00:01:41]}
38. Qd1 {[%clk 00:21:56]} {[%emt 00:01:31]} Rd4 {[%clk 00:01:14]} {[%emt
00:00:18]} 39. Qc2 {[%clk 00:21:40]} {[%emt 00:00:45]} Rc7 {[%clk 00:00:43]}
{[%emt 00:01:02]} 40. Qf5 {[%clk 00:21:56]} {[%emt 00:00:14]} Rxa4 {[%clk
00:00:48]} {[%emt 00:00:24]} 41. Bxh5 {[%clk 00:21:20]} {[%emt 00:01:06]} Rb4
{[%clk 00:00:50]} {[%emt 00:00:29]} 42. Qe6+ {[%clk 00:19:51]} {[%emt
00:01:58]} Kg7 {[%clk 00:00:56]} {[%emt 00:00:25]} 43. Qg6+ {[%clk 00:18:10]}
{[%emt 00:02:11]} Kh8 {[%clk 00:01:25]} {[%emt 00:00:02]} 44. Bg4 {[%clk
00:18:32]} {[%emt 00:00:07]} Rg7 {[%clk 00:00:43]} {[%emt 00:01:12]} 45. Qh6+
{[%clk 00:18:08]} {[%emt 00:00:53]} Rh7 {[%clk 00:01:11]} {[%emt 00:00:04]} 46.
Qe6 {[%clk 00:18:31]} {[%emt 00:00:06]} Kg7 {[%clk 00:00:44]} {[%emt 00:00:58]}
47. Rc1 {[%clk 00:17:13]} {[%emt 00:01:47]} Rxb5 {[%clk 00:01:11]} {[%emt
00:00:02]} 48. h3 {[%clk 00:17:24]} {[%emt 00:00:19]} Rb8 {[%clk 00:00:45]}
{[%emt 00:00:57]} 49. Rc6 {[%clk 00:16:39]} {[%emt 00:01:15]} Rh6 {[%clk
00:01:06]} {[%emt 00:00:09]} 50. Qf5 {[%clk 00:17:04]} {[%emt 00:00:04]} a4
{[%clk 00:00:41]} {[%emt 00:00:56]} 51. Qc2 {[%clk 00:17:19]} {[%emt 00:00:15]}
a3 {[%clk 00:00:37]} {[%emt 00:00:34]} 52. Ra6 {[%clk 00:16:34]} {[%emt
00:01:14]} Ra8 {[%clk 00:00:37]} {[%emt 00:00:31]} 53. Qa4 {[%clk 00:15:48]}
{[%emt 00:01:16]} Rxa6 {[%clk 00:01:00]} {[%emt 00:00:07]} 54. Qxa6 {[%clk
00:16:15]} {[%emt 00:00:03]} Qc7 {[%clk 00:00:48]} {[%emt 00:00:42]} 55. Qxa3
{[%clk 00:16:39]} {[%emt 00:00:07]} Rf6 {[%clk 00:00:38]} {[%emt 00:00:39]} 56.
Kh2 {[%clk 00:16:35]} {[%emt 00:00:33]} Rf8 {[%clk 00:00:49]} {[%emt 00:00:20]}
57. Qd3 {[%clk 00:16:19]} {[%emt 00:00:45]} Qc5 {[%clk 00:00:37]} {[%emt
00:00:42]} 58. Bh5 {[%clk 00:16:18]} {[%emt 00:00:31]} Rf6 {[%clk 00:00:46]}
{[%emt 00:00:22]} 59. Qb3 {[%clk 00:16:37]} {[%emt 00:00:11]} Qa7 {[%clk
00:00:36]} {[%emt 00:00:41]} 60. Qb5 {[%clk 00:16:34]} {[%emt 00:00:33]} Rf8
{[%clk 00:00:40]} {[%emt 00:00:25]} 61. Qb1 {[%clk 00:16:49]} {[%emt 00:00:15]}
Rf6 {[%clk 00:01:02]} {[%emt 00:00:08]} 62. Qb5 {[%clk 00:17:05]} {[%emt
00:00:13]} Rf8 {[%clk 00:00:47]} {[%emt 00:00:46]} 63. Qb1 {[%clk 00:17:11]}
{[%emt 00:00:24]} Rf6 {[%clk 00:01:16]} {[%emt 00:00:01]} 1/2-1/2